[Event "21st Bangkok CC Open 2024"]
[Site "Bangkok"]
[Date "2024.04.15"]
[Round "3.7"]
[White "Arca, Christian Gian Karlo"]
[Black "Sengupta, Deep"]
[Result "1/2-1/2"]
[ECO "D46"]
[WhiteElo "2283"]
[BlackElo "2500"]
[Annotator "RC"]
[PlyCount "202"]
[EventDate "2024.04.13"]
[EventType "swiss"]
[EventCountry "THA"]
[SourceTitle "playchess.com"]
[Source "ChessBase"]
[SourceQuality "1"]
[TimeControl "40/5400+30:1800+30"]

1. d4 {[%emt 0:00:03]} Nf6 {[%emt 0:00:33]} 2. c4 {[%emt 0:00:07]} c6 {[%emt 0:01:27]} 3. Nc3 {[%emt 0:00:06]} d5 {[%emt 0:00:03]} 4. Nf3 {[%emt 0:00:07]} e6 {[%emt 0:00:11]} 5. e3 {[%emt 0:00:08]} Nbd7 {[%emt 0:00:08]} 6. Bd3 {[%emt 0:00:07]} Bd6 {[%emt 0:00:12]} 7. O-O {[%emt 0:00:27]} O-O {[%emt 0:00:59]} 8. e4 {[%emt 0:15:53]} dxc4 {[%emt 0:02:19]} 9. Bxc4 {[%emt 0:00:09]} e5 {[%emt 0:00:03]} 10. Bg5 {[%emt 0:06:02]} h6 {[%emt 0:29:37]} 11. Bh4 {[%emt 0:11:08]} exd4 {[%emt 0:26:21]} 12. Qxd4 {[%emt 0:14:46]} Bc5 {[%emt 0:01:15]} 13. Qd2 {[%emt 0:01:45]} Ne5 {[%emt 0:09:14]} 14. Qxd8 {[%emt 0:04:25]} Nxf3+ {[%emt 0:00:05]} 15. gxf3 {[%emt 0:00:18]} Rxd8 {[%emt 0:00:02]} 16. Rfd1 {[%emt 0:07:25]} Re8 {[%emt 0:10:18]} 17. Bxf6 {[%emt 0:13:16]} gxf6 {[%emt 0:00:12]} 18. Ne2 {[%emt 0:00:12]} Kf8 {[%emt 0:05:10]} 19. Rd2 {[%emt 0:05:48]} Ke7 {[%emt 0:02:21]} 20. Rad1 {[%emt 0:00:12]} Rg8+ {[%emt 0:00:41]} 21. Ng3 {[%emt 0:01:18]} Bh3 {[%emt 0:01:59]} 22. f4 {[%emt 0:04:33]} Bb6 {[%emt 0:04:10]} 23. Bf1 {[%emt 0:03:53]} Bg4 {[%emt 0:01:27]} 24. Be2 {[%emt 0:00:26]} Ba5 {[%emt 0:02:27]} 25. Rc2 {[%emt 0:06:36]} Be6 {[%emt 0:00:09]} 26. b4 {[%emt 0:01:45]} Bc7 {[%emt 0:01:00]} 27. f5 {[%emt 0:00:07]} Bd7 {[%emt 0:00:12]} 28. Bc4 {[%emt 0:00:48]} Rgd8 {[%emt 0:00:52]} 29. Rcd2 {[%emt 0:01:01]} Be8 {[%emt 0:00:13]} 30. Nh5 {[%emt 0:01:30]} a5 {[%emt 0:00:32]} 31. Rxd8 {[%emt 0:00:36]} Rxd8 {[%emt 0:00:24]} 32. Rxd8 {[%emt 0:00:15]} Bxd8 {[%emt 0:00:03]} 33. bxa5 {[%emt 0:00:11]} Bxa5 {[%emt 0:00:06]} 34. f4 {[%emt 0:00:11]} b5 {[%emt 0:00:55]} 35. Bb3 {[%emt 0:00:13]} c5 {[%emt 0:00:34]} 36. Bd5 {[%emt 0:01:30]} Bc7 {[%emt 0:01:36]} 37. Kf2 {[%emt 0:00:03]} b4 {[%emt 0:00:02]} 38. Bc4 {[%emt 0:00:18]} Ba4 {[%emt 0:00:07]} 39. Ke3 {[%emt 0:00:11]} Bd1 {[%emt 0:00:44]} 40. Ng3 {[%emt 0:00:23]} Bb6 {[%emt 0:01:09]} 41. Nh1 {[%emt 0:30:16]} b3 {[%emt 0:05:51]} 42. axb3 {[%emt 0:00:00]} Bxb3 {[%emt 0:00:04]} 43. Kd3 {[%emt 0:00:00]} Ba4 {[%emt 0:17:03]} 44. Nf2 {[%emt 0:00:00]} h5 {[%emt 0:00:14]} 45. Ke3 {[%emt 0:00:00]} Ba5 {[%emt 0:03:09]} 46. Nd3 {[%emt 0:00:00]} Bc2 {[%emt 0:00:51]} 47. Nc1 {[%emt 0:00:00]} Bc3 {[%emt 0:01:43]} 48. Ne2 {[%emt 0:00:00]} Bb2 {[%emt 0:00:14]} 49. Bd5 {[%emt 0:00:00]} Bb1 {[%emt 0:03:38]} 50. h4 {[%emt 0:00:00]} Ba3 {[%emt 0:01:52]} 51. Nc3 {[%emt 0:02:04]} Bc1+ {[%emt 0:00:07]} 52. Kf3 {[%emt 0:00:16]} Bd3 {[%emt 0:00:32]} 53. Bb3 {[%emt 0:01:43]} Kf8 {[%emt 0:00:34]} 54. Bd1 {[%emt 0:00:48]} Kg7 {[%emt 0:01:03]} 55. Nd5 {[%emt 0:00:32]} Bd2 {[%emt 0:00:22]} 56. Be2 {[%emt 0:00:46]} Bb1 {[%emt 0:00:43]} 57. Bc4 {[%emt 0:00:28]} Be1 {[%emt 0:00:16]} 58. Ne3 {[%emt 0:00:01]} Kf8 {[%emt 0:00:44]} 59. Ng2 {[%emt 0:00:46]} Bc3 {[%emt 0:00:19]} 60. Ne3 {[%emt 0:00:12]} Be1 {[%emt 0:00:42]} 61. Ng2 {[%emt 0:00:19]} Bc3 {[%emt 0:00:29]} 62. Ne3 {[%emt 0:00:01]} Kg7 {[%emt 0:00:25]} 63. Nd5 {[%emt 0:00:43]} Be1 {[%emt 0:00:12]} 64. Ke2 {[%emt 0:00:09]} Ba5 {[%emt 0:00:41]} 65. Kf3 {[%emt 0:00:49]} Bc2 {[%emt 0:00:14]} 66. Ne3 {[%emt 0:00:18]} Ba4 {[%emt 0:00:03]} 67. Ke2 {[%emt 0:00:24]} Bc3 {[%emt 0:01:30]} 68. Nf1 {[%emt 0:00:01]} Be8 {[%emt 0:00:24]} 69. Kf2 {[%emt 0:00:49]} Bb2 {[%emt 0:00:17]} 70. Ng3 {[%emt 0:00:47]} Kh6 {[%emt 0:00:08]} 71. Ne2 {[%emt 0:01:13]} Kg7 {[%emt 0:00:47]} 72. Ke3 {[%emt 0:00:16]} Ba4 {[%emt 0:00:42]} 73. Kd2 {[%emt 0:00:50]} Be8 {[%emt 0:00:28]} 74. Kc2 {[%emt 0:00:52]} Ba3 {[%emt 0:00:03]} 75. Ng3 {[%emt 0:00:20]} Kh6 {[%emt 0:00:38]} 76. e5 {[%emt 0:00:42]} fxe5 {[%emt 0:01:01]} 77. fxe5 {[%emt 0:00:02]} Bb4 {[%emt 0:00:10]} 78. f6 {[%emt 0:00:53]} Be1 {[%emt 0:00:50]} 79. Nf5+ {[%emt 0:00:10]} Kh7 {[%emt 0:00:08]} 80. Nd6 {[%emt 0:02:11]} Ba4+ {[%emt 0:00:04]} 81. Kd3 {[%emt 0:00:14]} Bxh4 {[%emt 0:00:31]} 82. Nxf7 {[%emt 0:00:50]} Kg6 {[%emt 0:01:02]} 83. Nh8+ {[%emt 0:01:49]} Kf5 {[%emt 0:00:19]} 84. f7 {[%emt 0:01:00]} Be7 {[%emt 0:00:06]} 85. Ke3 {[%emt 0:00:37]} Bc2 {[%emt 0:00:47]} 86. Be2 {[%emt 0:00:32]} h4 {[%emt 0:00:33]} 87. Bh5 {[%emt 0:00:14]} Kg5 {[%emt 0:00:48]} 88. Bf3 {[%emt 0:00:01]} h3 {[%emt 0:00:13]} 89. Kf2 {[%emt 0:00:32]} c4 {[%emt 0:00:12]} 90. Kg3 {[%emt 0:00:38]} c3 {[%emt 0:00:04]} 91. f8=Q {[%emt 0:00:53]} Bxf8 {[%emt 0:00:05]} 92. Bd5 {[%emt 0:00:17]} Kf5 {[%emt 0:02:07]} 93. Nf7 {[%emt 0:00:18]} Be4 {[%emt 0:00:26]} 94. Nd6+ {[%emt 0:01:09]} Bxd6 {[%emt 0:00:35]} 95. exd6 {[%emt 0:00:12]} c2 {[%emt 0:00:32]} 96. d7 {[%emt 0:00:01]} c1=Q {[%emt 0:00:18]} 97. Bxe4+ {[%emt 0:00:02]} Kxe4 {[%emt 0:00:04]} 98. d8=Q {[%emt 0:00:05]} Qe3+ {[%emt 0:00:53]} 99. Kh2 {[%emt 0:00:09]} Kf3 {[%emt 0:00:36]} 100. Qf6+ {[%emt 0:00:27]} Ke2 {[%emt 0:00:04]} 101. Qh4 {[%emt 0:00:38]} Qf2+ {[%emt 0:00:55]} 1/2-1/2

[Event "21st Bangkok CC Open 2024"]
[Site "Bangkok"]
[Date "2024.04.15"]
[Round "3.8"]
[White "Lim, Zhuo Ren"]
[Black "Srihari L R"]
[Result "0-1"]
[ECO "D17"]
[WhiteElo "2248"]
[BlackElo "2482"]
[Annotator "TA"]
[PlyCount "94"]
[EventDate "2024.04.13"]
[EventType "swiss"]
[EventCountry "THA"]
[SourceTitle "playchess.com"]
[Source "ChessBase"]
[SourceQuality "1"]
[TimeControl "40/5400+30:1800+30"]

{[%evp 13,94,17,2,-14,-16,-32,-34,-16,-18,-29,-2,2,-4,-14,5,0,-2,-2,13,17,11,12,10,8,45,-12,-10,-18,-18,-6,-8,-8,0,0,0,0,0,9,9,10,17,-40,-45,-83,-35,-46,-47,-45,-45,-38,-36,-39,0,0,0,0,0,0,0,0,0,-54,-62,-57,-53,-56,-39,-53,-53,-53,-46,-93,-87,-130,-64,-66,-67,-62,-70,-143,-158,-234,-222]} 1. d4 {[%emt 0:00:12]} d5 {[%emt 0:00:47]} 2. Nf3 {[%emt 0:00:18]} Nf6 {[%emt 0:00:12]} 3. c4 {[%emt 0:00:23]} c6 {[%emt 0:00:08]} 4. Nc3 {[%emt 0:00:20]} dxc4 {[%emt 0:00:14]} 5. a4 {[%emt 0:00:22]} Bf5 {[%emt 0:00:14]} 6. Ne5 {[%emt 0:00:35]} Nbd7 {[%emt 0:00:23]} 7. Nxc4 {[%emt 0:00:17]} Qc7 {[%emt 0:00:06]} 8. Qd2 {[%emt 0:00:59]} g6 {[%emt 0:00:25]} 9. Qf4 {[%emt 0:00:48]} Qxf4 {[%emt 0:01:03]} 10. Bxf4 {[%emt 0:00:06] Black is slightly better.} Bg7 {[%emt 0:00:07]} 11. e3 {[%emt 0:02:11]} O-O {[%emt 0:12:24]} 12. Be2 {[%emt 0:01:04]} Nd5 {[%emt 0:02:25]} 13. Bg3 {[%emt 0:03:11]} Nb4 {[%emt 0:03:15] Hoping for ...Nc2+.} 14. O-O {[%emt 0:00:25]} c5 {[%emt 0:00:16]} 15. d5 {[%emt 0:23:37]} Bxc3 {[%emt 0:04:23]} 16. bxc3 {[%emt 0:00:25]} Nxd5 {[%emt 0:00:08]} 17. Rfc1 {[%emt 0:00:44]} b6 {[%emt 0:17:15]} 18. a5 {[%emt 0:10:43]} b5 {[%emt 0:22:08] [#]} 19. e4 $1 {[%emt 0:01:28]} Bxe4 $11 {[%emt 0:08:06]} 20. Nd2 {[%emt 0:00:10][%csl LRb5,LRe4]} Bf5 {[%emt 0:01:03] White must now prevent ...b4.} 21. Bxb5 {[%emt 0:00:14]} N7f6 {[%emt 0:00:06][%cal Bd7f6,Bf6h5,Bh5f4][%mdl 32]} 22. f3 {[%emt 0:05:32][%cal Bf2f3,Bf3e4][%mdl 32]} Nh5 {[%emt 0:01:30]} 23. Bf2 {[%emt 0:01:03][%cal Og2g4] aiming for g4! A strong pair of Bishops.} Nhf4 {[%emt 0:00:08]} 24. Bf1 {[%emt 0:04:12]} Rac8 {[%emt 0:05:25]} 25. Ne4 {[%emt 0:02:01]} Bxe4 {[%emt 0:00:44]} 26. fxe4 {[%emt 0:00:04]} Nf6 {[%emt 0:00:05]} 27. g3 {[%emt 0:01:00]} (27. e5 $11 N6d5 28. g3) 27... Ne6 $15 {[%emt 0:00:26]} 28. Ra4 {[%emt 0:03:34]} Ng5 {[%emt 0:02:15]} (28... Rb8 $17 29. Bh3 Nd7) 29. Bg2 {[%emt 0:02:56]} Ng4 {[%emt 0:02:24]} 30. h4 {[%emt 0:01:09]} Ne6 {[%emt 0:00:32]} 31. Bh3 {[%emt 0:01:07]} Nxf2 {[%emt 0:00:56]} 32. Kxf2 {[%emt 0:00:04]} Rc6 {[%emt 0:00:09]} 33. Rb1 {[%emt 0:00:40]} Rc7 {[%emt 0:08:05]} 34. Bxe6 {[%emt 0:01:18]} fxe6+ $11 {[%emt 0:00:01][%mdl 4096] Endgame. KRR-KRR} 35. Ke2 {[%emt 0:34:48]} Rd8 {[%emt 0:01:30]} 36. Rc4 {[%emt 0:00:00]} e5 {[%emt 0:03:42]} 37. Rd1 {[%emt 0:00:00]} (37. a6 $11) 37... Rxd1 $15 {[%emt 0:00:48]} 38. Kxd1 {[%emt 0:00:00] KR-KR} Kf7 {[%emt 0:00:13][%cal Og6g5]} 39. Ra4 {[%emt 0:00:00]} Ke6 {[%emt 0:00:36]} 40. Ra2 {[%emt 0:00:00]} Rb7 {[%emt 0:01:08]} 41. Kc2 {[%emt 0:09:12] Prevents Rb1} Kd6 {[%emt 0:32:28]} 42. Kd3 {[%emt 0:05:00] [#]} (42. Ra1 $15) 42... Rb1 $1 $17 {[%emt 0:00:29]} 43. Kc4 {[%emt 0:00:10] [#]} Kc6 {[%emt 0:00:10]} (43... Re1 $1 $17 44. Kb5 Rxe4 45. Rd2+ Ke6) 44. Rf2 $15 {[%emt 0:01:06]} Re1 {[%emt 0:01:25]} 45. Kd3 {[%emt 0:02:27]} Rg1 {[%emt 0:00:31]} 46. Rf3 {[%emt 0:00:16]} ({White should try} 46. Rf7 $15) 46... Kb5 $17 {[%emt 0:00:35][%cal Oh7h5]} 47. h5 {[%emt 0:04:01]} (47. Rf7 $17 {might work better.}) 47... gxh5 {[%emt 0:00:00] Weighted Error Value: White=0.16 (very precise) /Black=0.08 (flawless) .  Mistake:       	White=6     	Black=2      Inaccurate:     	White=2     	Black=3      OK:         	White=17    	Black=18     Best:        	---       	Black=3      Strong:       	---       	Black=1} ({Not} 47... Kxa5 48. Kc4 $15) 0-1

[Event "21st Bangkok CC Open 2024"]
[Site "Bangkok"]
[Date "2024.04.15"]
[Round "3.9"]
[White "Urazayev, Arystanbek"]
[Black "Karavade, Eesha"]
[Result "1/2-1/2"]
[ECO "B45"]
[WhiteElo "2471"]
[BlackElo "2265"]
[Annotator "ChessBase"]
[PlyCount "107"]
[EventDate "2024.04.13"]
[EventType "swiss"]
[EventCountry "THA"]
[SourceTitle "playchess.com"]
[Source "ChessBase"]
[SourceQuality "1"]
[TimeControl "40/5400+30:1800+30"]

1. e4 {[%emt 0:03:35]} c5 {[%emt 0:00:22]} 2. Nf3 {[%emt 0:00:07]} e6 {[%emt 0:00:30]} 3. d4 {[%emt 0:00:05]} cxd4 {[%emt 0:00:07]} 4. Nxd4 {[%emt 0:00:03]} Nc6 {[%emt 0:00:10]} 5. Nc3 {[%emt 0:00:05]} Nf6 {[%emt 0:00:26]} 6. Be2 {[%emt 0:11:19]} Bb4 {[%emt 0:01:39]} 7. O-O {[%emt 0:00:12]} Bxc3 {[%emt 0:00:07]} 8. bxc3 {[%emt 0:00:03]} Nxe4 {[%emt 0:00:15]} 9. Nxc6 {[%emt 0:00:04]} dxc6 {[%emt 0:01:07]} 10. Bd3 {[%emt 0:00:05]} Nc5 {[%emt 0:13:41]} 11. Qg4 {[%emt 0:00:39]} O-O {[%emt 0:04:28]} 12. Ba3 {[%emt 0:03:28]} b6 {[%emt 0:02:05]} 13. Bxc5 {[%emt 0:09:57]} bxc5 {[%emt 0:00:04]} 14. Rab1 {[%emt 0:00:12]} g6 {[%emt 0:19:33]} 15. Qf4 {[%emt 0:05:28]} e5 {[%emt 0:11:45]} 16. Qxe5 {[%emt 0:00:52]} Qd5 {[%emt 0:00:03]} 17. Rfe1 {[%emt 0:04:36]} c4 {[%emt 0:07:27]} 18. Bf1 {[%emt 0:01:10]} Bf5 {[%emt 0:01:42]} 19. Qf4 {[%emt 0:01:19]} Be6 {[%emt 0:08:16]} 20. h4 {[%emt 0:01:30]} Rad8 {[%emt 0:05:34]} 21. Re3 {[%emt 0:07:25]} Qd2 {[%emt 0:06:35]} 22. Rbe1 {[%emt 0:15:08]} Qxc2 {[%emt 0:00:23]} 23. Bxc4 {[%emt 0:00:14]} Bxc4 {[%emt 0:01:09]} 24. Qxc4 {[%emt 0:00:03]} Rd2 {[%emt 0:01:46]} 25. Qf4 {[%emt 0:06:08]} Rd1 {[%emt 0:03:51]} 26. Rxd1 {[%emt 0:01:11]} Qxd1+ {[%emt 0:00:02]} 27. Kh2 {[%emt 0:00:09]} Qd5 {[%emt 0:02:56]} 28. c4 {[%emt 0:01:03]} Qc5 {[%emt 0:00:44]} 29. Re5 {[%emt 0:00:51]} Qd6 {[%emt 0:00:15]} 30. c5 {[%emt 0:00:18]} Qd7 {[%emt 0:04:28]} 31. h5 {[%emt 0:01:16]} f6 {[%emt 0:00:16]} 32. Re3 {[%emt 0:03:17]} Qd5 {[%emt 0:02:32]} 33. hxg6 {[%emt 0:03:09]} hxg6 {[%emt 0:00:02]} 34. Qh6 {[%emt 0:00:26]} Qg5 {[%emt 0:00:05]} 35. Qxg5 {[%emt 0:03:07]} fxg5 {[%emt 0:00:01]} 36. Kg3 {[%emt 0:00:38]} Rf5 {[%emt 0:00:23]} 37. Ra3 {[%emt 0:00:09]} Rxc5 {[%emt 0:00:23]} 38. Rxa7 {[%emt 0:00:03]} Rc4 {[%emt 0:02:33]} 39. a4 {[%emt 0:00:16]} Kf8 {[%emt 0:00:05]} 40. a5 {[%emt 0:00:16]} Ra4 {[%emt 0:00:19]} 41. a6 {[%emt 0:33:19]} c5 {[%emt 0:03:49]} 42. Kf3 {[%emt 0:00:00]} c4 {[%emt 0:06:58]} 43. Ke4 {[%emt 0:00:00]} c3+ {[%emt 0:00:49]} 44. Kd3 {[%emt 0:00:00]} Ra3 {[%emt 0:00:14]} 45. Kc2 {[%emt 0:00:00]} Kg8 {[%emt 0:00:08]} 46. f3 {[%emt 0:00:00]} Kf8 {[%emt 0:01:58]} 47. Kd3 {[%emt 0:00:00]} Kg8 {[%emt 0:00:17]} 48. Ra8+ {[%emt 0:00:00]} Kg7 {[%emt 0:00:07]} 49. a7 {[%emt 0:00:00]} Kh7 {[%emt 0:00:17]} 50. Rc8 {[%emt 0:00:00]} Rxa7 {[%emt 0:00:16]} 51. Rxc3 {[%emt 0:00:00]} Kg7 {[%emt 0:01:51]} 52. Ke4 {[%emt 0:00:00]} Ra2 {[%emt 0:00:40]} 53. g4 {[%emt 0:00:01]} Ra4+ {[%emt 0:00:09]} 54. Ke3 {[%emt 0:00:50]} 1/2-1/2

[Event "21st Bangkok CC Open 2024"]
[Site "Bangkok"]
[Date "2024.04.15"]
[Round "3.10"]
[White "Dinh Nho Kiet"]
[Black "Quizon, Daniel"]
[Result "1-0"]
[ECO "E90"]
[WhiteElo "2245"]
[BlackElo "2441"]
[Annotator "TA"]
[PlyCount "109"]
[EventDate "2024.04.13"]
[EventType "swiss"]
[EventCountry "THA"]
[SourceTitle "playchess.com"]
[Source "ChessBase"]
[SourceQuality "1"]
[TimeControl "40/5400+30:1800+30"]

{[%evp 19,109,35,47,44,38,19,80,73,104,108,118,88,105,104,141,77,95,83,270,103,195,158,155,147,182,106,131,146,132,134,139,106,106,106,115,108,106,105,105,112,105,0,105,108,226,220,230,223,221,176,231,224,239,215,294,275,374,384,383,368,485,473,571,523,508,356,414,407,420,426,414,404,385,375,694,593,618,532,1051,1021,1027,1008,29972,29973,29974,29975,29987,29988,29988,29989,29992,29986]} 1. d4 {[%emt 0:00:05]} Nf6 {[%emt 0:01:40]} 2. c4 {[%emt 0:00:43]} c5 {[%emt 0:00:38]} 3. d5 {[%emt 0:00:06]} d6 {[%emt 0:00:10]} 4. Nc3 {[%emt 0:00:30]} g6 {[%emt 0:00:10]} 5. e4 {[%emt 0:00:09]} Bg7 {[%emt 0:00:11]} 6. Bd3 {[%emt 0:00:16]} O-O {[%emt 0:00:13]} 7. h3 {[%emt 0:00:37]} e6 {[%emt 0:00:41]} 8. Nf3 {[%emt 0:00:09]} exd5 {[%emt 0:00:11]} 9. exd5 {[%emt 0:00:05]} Re8+ {[%emt 0:01:43]} 10. Be3 {[%emt 0:00:07]} a6 {[%emt 0:09:25][%cal Ob7b5]} 11. O-O {[%emt 0:03:19]} Nbd7 {[%emt 0:00:25]} 12. Bf4 {[%emt 0:12:42]} Nf8 {[%emt 0:00:58]} (12... b5 $11 {remains equal.}) 13. Qd2 {[%emt 0:01:09] White is better.} b6 {[%emt 0:08:32]} 14. Rfe1 {[%emt 0:05:51]} Bb7 {[%emt 0:26:25]} 15. Rxe8 {[%emt 0:31:55]} Nxe8 {[%emt 0:00:47]} 16. Re1 {[%emt 0:01:19]} Qd7 {[%emt 0:06:02]} 17. Ne4 {[%emt 0:01:32]} (17. b3 $142) 17... f5 $16 {[%emt 0:01:08]} 18. Ng3 {[%emt 0:06:16]} Bf6 $2 {[%emt 0:07:38] [#] Against Nh4} (18... Nf6 $16 {was called for.}) 19. b4 $2 {[%emt 0:02:05]} (19. Bg5 $1 $18 {and the rest is easy.}) 19... a5 {[%emt 0:05:06]} (19... cxb4 $16 20. Qxb4 Qc7) 20. bxc5 {[%emt 0:01:32]} bxc5 {[%emt 0:00:02]} 21. Bg5 {[%emt 0:30:33][%cal Oe1e8] And now Rxe8! would win.} Qg7 {[%emt 0:05:41]} 22. Bxf6 {[%emt 0:00:00]} (22. Bh6 $18 Qd7 23. h4) 22... Qxf6 {[%emt 0:00:52]} 23. Bc2 {[%emt 0:00:00][%cal Bd3c2,Bc2a4,Ba4c6][%mdl 32]} Ng7 {[%emt 0:05:52]} 24. Ba4 {[%emt 0:00:00]} Ra7 {[%emt 0:08:04]} 25. Qf4 {[%emt 0:00:00] Black must now prevent Ne4.} Qd8 {[%emt 0:00:28]} 26. Rb1 {[%emt 0:00:00] White has more active pieces.} Ba6 {[%emt 0:00:28]} 27. Bc6 {[%emt 0:00:00]} Re7 {[%emt 0:02:31]} 28. h4 $36 {[%emt 0:00:00][%mdl 2048] White is on the roll.} Rf7 {[%emt 0:02:40]} 29. Ng5 {[%emt 0:00:00]} Re7 {[%emt 0:00:14]} 30. Nf3 {[%emt 0:00:00]} Rf7 $1 {[%emt 0:00:02]} 31. a4 {[%emt 0:00:00] White stays focused until the end.} h5 {[%emt 0:01:24]} (31... Qc7 $16 32. Ng5 Re7) 32. Ng5 $18 {[%emt 0:00:00]} Re7 {[%emt 0:00:02]} 33. Nf1 {[%emt 0:00:00]} Qc7 {[%emt 0:02:35]} 34. Ne3 {[%emt 0:00:58]} Re5 {[%emt 0:00:04] Black is weak on the light squares} (34... Ne8 {might work better.} 35. Bxe8 Rxe8) 35. Qf3 {[%emt 0:00:57]} Qd8 {[%emt 0:01:37]} 36. g3 {[%emt 0:00:47]} Qc7 {[%emt 0:00:01]} 37. Qd1 {[%emt 0:01:46]} Nh7 {[%emt 0:01:33][%cal Bf8h7,Bh7f6,Bf6g4][%mdl 32]} 38. Qb3 {[%emt 0:01:38] Hoping for Qb8+.} Qe7 {[%emt 0:00:01] [#]} 39. Ne6 {[%emt 0:00:55][%mdl 512]} Nxe6 {[%emt 0:00:10]} (39... Nf8 40. Ng5) 40. dxe6 {[%emt 0:00:04]} Kg7 {[%emt 0:00:44][%cal Bg8g7,Bg7h7,Bh7g6,Bg6h6][%mdl 32]} 41. Bd5 {[%emt 0:31:33] aiming for Qb6.} Nf6 {[%emt 0:31:49]} 42. Qb8 {[%emt 0:00:00] Prevents Bc8.} f4 {[%emt 0:00:00]} 43. gxf4 {[%emt 0:00:00]} Rxe3 {[%emt 0:00:00]} 44. fxe3 {[%emt 0:00:00] Qb6 is the strong threat.} Ng4 {[%emt 0:00:00]} 45. Qb2+ {[%emt 0:00:00]} Kh7 {[%emt 0:00:00]} 46. Qg2 {[%emt 0:00:00]} Bc8 $2 {[%emt 0:00:00] [#]} (46... Qxh4 47. e4 Kh6) 47. f5 $1 {[%emt 0:00:00]} gxf5 {[%emt 0:00:00]} (47... Qxh4 48. fxg6+) 48. Qf3 {[%emt 0:00:00]} Kg6 {[%emt 0:00:00]} 49. Qf4 {[%emt 0:00:00] Rb8 would now be deadly.} Qxh4 {[%emt 0:00:00]} 50. e4 {[%emt 0:00:00]} (50. Qxd6 Qf2+ 51. Kh1 Qxe3 $11 (51... Qh4+ $2 52. Kg2 $18)) 50... Qh3 {[%emt 0:00:38]} 51. Qxf5+ {[%emt 0:00:00] White mates.} Kh6 {[%emt 0:00:01]} 52. Qf4+ {[%emt 0:00:00]} Kg6 {[%emt 0:01:17]} 53. e7 {[%emt 0:00:00]} ({Weaker is} 53. Qxd6 Qe3+ 54. Kg2 Qe2+ 55. Kg1 Qf2+ 56. Kh1 Kg7 $11) 53... Nf6 {[%emt 0:00:02]} 54. Rf1 {[%emt 0:00:00]} ({And not} 54. Qxd6 Qe3+ 55. Kh1 Qf3+ 56. Kg1 Qe3+ 57. Kg2 Qe2+ 58. Kg1 Qe3+ $11) 54... Kh7 {[%emt 0:00:11]} 55. Rf3 {[%emt 0:00:00] Weighted Error Value: White=0.25 (precise) /Black=0.44.  Loses game:     	---       	Black=1      Missed win:     	White=1     	---        Mistake:       	White=2     	Black=5      Inaccurate:     	---       	Black=6      OK:         	White=12    	Black=11     Best:        	---       	Black=7      Strong:       	---       	Black=1} ({Inferior is} 55. Qxf6 Qg3+ 56. Kh1 Qh3+ 57. Kg1 Qg3+ 58. Kh1 Qh3+ 59. Kg1 $11) 1-0